fUST/lending_fUST_20250312
["ID","MTS","AMOUNT","RATE_DAILY","PERIOD"]
[355922784,1741716673638,-500.0,0.00022465,2]
[355922785,1741716673647,-500.0,0.00022465,2]
[355922786,1741716673657,-2662.49,0.00022465,2]
[355922787,1741716673668,-1204.27,0.00022465,2]
[355922788,1741716673678,-500.0,0.00022465,2]
[355922789,1741716673688,-760.44,0.00022465,2]
[355922790,1741716673698,-500.0,0.00022465,2]
[355922791,1741716673708,-717.54,0.00022465,2]
[355922792,1741716673718,-500.0,0.00022465,2]
[355922793,1741716673728,-500.0,0.00022465,2]
[355922794,1741716673738,-500.0,0.00022465,2]
[355922795,1741716673748,-1467.71,0.00022465,2]
[355922796,1741716673759,-500.0,0.00022465,2]
[355922797,1741716673771,-500.0,0.00022465,2]
[355922798,1741716673781,-2537.49,0.00022465,2]
[355922799,1741716673791,-500.0,0.00022465,2]
[355922800,1741716673801,-500.0,0.00022465,2]
[355922801,1741716673811,-500.0,0.00022465,2]
[355922802,1741716673820,-500.0,0.00022465,2]
[355922803,1741716673830,-500.0,0.00022465,2]
[355922804,1741716673840,-1701.43,0.00022465,2]
[355922805,1741716673850,-500.0,0.00022465,2]
[355922806,1741716673860,-500.0,0.00022465,2]
[355922807,1741716673870,-1155.99,0.00022465,2]
[355922808,1741716673880,-500.0,0.00022465,2]
[355922809,1741716673889,-500.0,0.00022465,2]
[355922810,1741716673899,-500.0,0.00022465,2]
[355922811,1741716673908,-644.13,0.00022465,2]
[355922812,1741716673918,-500.0,0.00022465,2]
[355922813,1741716673927,-500.0,0.00022465,2]
[355922814,1741716673937,-500.0,0.00022465,2]
[355922815,1741716673946,-834.21,0.00022465,2]
[355922816,1741716673956,-500.0,0.00022465,2]
[355922817,1741716673966,-500.0,0.00022465,2]
[355922818,1741716673976,-798.51,0.00022465,2]
[355922819,1741716673986,-500.0,0.00022465,2]
[355922820,1741716673996,-500.0,0.00022465,2]
[355922821,1741716674006,-512.89826559,0.00022465,2]
[355922822,1741716674019,-908.5,0.00022465,2]
[355922823,1741716674033,-500.0,0.00022465,2]
[355922824,1741716674043,-500.0,0.00022465,2]
[355922825,1741716674052,-500.0,0.00022465,2]
[355922826,1741716674062,-572.05,0.00022465,2]
[355922827,1741716674074,-500.0,0.00022465,2]
[355922828,1741716674084,-500.0,0.00022465,2]
[355922829,1741716674094,-1740.21,0.00022465,2]
[355922830,1741716674105,-1291.37,0.00022465,2]
[355922831,1741716674115,-500.0,0.00022465,2]
[355922832,1741716674125,-1766.21,0.00022465,2]
[355922833,1741716674136,-682.17,0.00022465,2]
[355922834,1741716674147,-500.0,0.00022465,2]
[355922835,1741716674158,-893.83,0.00022465,2]
[355922836,1741716674169,-500.0,0.00022465,2]
[355922837,1741716674180,-500.0,0.00022465,2]
[355922838,1741716674191,-500.0,0.00022465,2]
[355922839,1741716674202,-500.0,0.00022465,2]
[355922840,1741716674215,-500.0,0.00022465,2]
[355922841,1741716674225,-500.0,0.00022465,2]
[355922842,1741716674235,-500.0,0.00022465,2]
[355922843,1741716674246,-500.0,0.00022465,2]
[355922844,1741716674256,-2321.3,0.00022465,2]
[355922845,1741716674267,-500.0,0.00022465,2]
[355922846,1741716674279,-500.0,0.00022465,2]
[355922847,1741716674289,-500.0,0.00022465,2]
[355922848,1741716674299,-1549.95,0.00022465,2]
[355922849,1741716674308,-2086.15,0.00022465,2]
[355922850,1741716674319,-500.0,0.00022465,2]
[355922851,1741716674329,-500.0,0.00022465,2]
[355922852,1741716674339,-500.0,0.00022465,2]
[355922853,1741716674349,-500.0,0.00022465,2]
[355922854,1741716674360,-500.0,0.00022465,2]
[355922855,1741716674371,-1804.17,0.00022465,2]
[355922856,1741716674381,-931.4,0.00022465,2]
[355922857,1741716674391,-500.0,0.00022465,2]
[355922858,1741716674401,-1955.81,0.00022465,2]
[355922859,1741716674411,-500.0,0.00022465,2]
[355922860,1741716674419,-500.0,0.00022465,2]
[355922861,1741716674429,-1203.57,0.00022465,2]
[355922862,1741716674439,-936.91,0.00022465,2]
[355922863,1741716674449,-500.0,0.00022465,2]
[355922864,1741716674459,-500.0,0.00022465,2]
[355922865,1741716674470,-1167.97,0.00022465,2]
[355922866,1741716674480,-500.0,0.00022465,2]
[355922867,1741716674490,-500.0,0.00022465,2]
[355922868,1741716674501,-500.0,0.00022465,2]
[355922869,1741716674511,-500.0,0.00022465,2]
[355922870,1741716674524,-3441.63,0.00022465,2]
[355922871,1741716674535,-500.0,0.00022465,2]
[355922872,1741716674545,-500.0,0.00022465,2]
[355922873,1741716674555,-500.0,0.00022465,2]
[355922874,1741716674566,-500.0,0.00022465,2]
[355922875,1741716674575,-500.0,0.00022465,2]
[355922876,1741716674585,-1565.71,0.00022465,2]
[355922877,1741716674596,-500.0,0.00022465,2]
[355922878,1741716674606,-1264.65,0.00022465,2]
[355922879,1741716674616,-288.27753017,0.00022465,2]
[355922880,1741716674626,-1028.23,0.00022465,2]
[355922881,1741716674636,-500.0,0.00022465,2]
[355922882,1741716674646,-500.0,0.00022465,2]
[355922883,1741716674657,-500.0,0.00022465,2]
[355922884,1741716674667,-506.54902613,0.00022465,2]
[355922885,1741716674677,-500.0,0.00022465,2]
[355922886,1741716674688,-500.0,0.00022465,2]
[355922887,1741716674699,-500.0,0.00022465,2]
[355922888,1741716674710,-1625.43,0.00022465,2]
[355922889,1741716674721,-1803.2,0.00022465,2]
[355922890,1741716674733,-530.07312393,0.00022465,2]
[355922891,1741716674743,-500.0,0.00022465,2]
[355922892,1741716674754,-500.0,0.00022465,2]
[355922893,1741716674765,-500.0,0.00022465,2]
[355922894,1741716674780,-500.0,0.00022465,2]
[355922895,1741716674792,-500.0,0.00022465,2]
[355922896,1741716674804,-525.22786692,0.00022465,2]
[355922897,1741716674815,-500.0,0.00022465,2]
[355922898,1741716674826,-517.9062375,0.00022465,2]
[355922899,1741716674837,-500.0,0.00022465,2]
[355922900,1741716674848,-500.0,0.00022465,2]
[355922901,1741716674860,-500.0,0.00022465,2]
[355922902,1741716674872,-1045.75,0.00022465,2]
[355922903,1741716674882,-500.0,0.00022465,2]
[355922904,1741716674893,-500.0,0.00022465,2]
[355922905,1741716674904,-791.16,0.00022465,2]
[355922906,1741716674915,-505.87320093,0.00022465,2]
[355922907,1741716674925,-500.0,0.00022465,2]
[355922908,1741716674936,-500.0,0.00022465,2]
[355922909,1741716674947,-500.0,0.00022465,2]
[355922910,1741716674957,-500.0,0.00022465,2]
[355922911,1741716674969,-500.0,0.00022465,2]
[355922912,1741716674979,-500.0,0.00022465,2]
[355922913,1741716674991,-500.0,0.00022465,2]
[355922914,1741716675002,-500.0,0.00022465,2]
[355922915,1741716675013,-500.0,0.00022465,2]
[355922916,1741716675032,-500.0,0.00022465,2]
[355922917,1741716675052,-569.54196653,0.00022465,2]
[355922918,1741716675063,-500.0,0.00022465,2]
[355922919,1741716675076,-521.0857854,0.00022465,2]
[355922920,1741716675089,-500.0,0.00022465,2]
[355922921,1741716675102,-500.0,0.00022465,2]
[355922922,1741716675115,-500.0,0.00022465,2]
[355922923,1741716675127,-500.0,0.00022465,2]
[355922924,1741716675139,-500.0,0.00022465,2]
[355922925,1741716675152,-500.0,0.00022465,2]
[355922926,1741716675164,-500.0,0.00022465,2]
[355922927,1741716675177,-500.0,0.00022465,2]
[355922928,1741716675189,-500.0,0.00022465,2]
[355922929,1741716675200,-500.0,0.00022465,2]
[355922930,1741716675212,-500.0,0.00022465,2]
[355922931,1741716675224,-464.87779448,0.00022465,2]
[355922932,1741716675236,-500.0,0.00022465,2]
[355922933,1741716675248,-500.0,0.00022465,2]
[355922934,1741716675261,-500.0,0.00022465,2]
[355922935,1741716675278,-500.0,0.00022465,2]
[355922936,1741716675290,-500.0,0.00022465,2]
[355922937,1741716675302,-500.0,0.00022465,2]
[355922938,1741716675315,-500.0,0.00022465,2]
[355922939,1741716675327,-500.0,0.00022465,2]
[355922940,1741716675338,-1070.64,0.00022465,2]
[355922941,1741716675349,-939.85,0.00022465,2]
[355922942,1741716675362,-500.0,0.00022465,2]
[355922943,1741716675373,-510.39669128,0.00022465,2]
[355922944,1741716675385,-500.0,0.00022465,2]
[355922945,1741716675396,-500.0,0.00022465,2]
[355922946,1741716675406,-700.06,0.00022465,2]
[355922947,1741716675418,-500.0,0.00022465,2]
[355922948,1741716675429,-500.0,0.00022465,2]
[355922949,1741716675439,-500.0,0.00022465,2]
[355922950,1741716675451,-500.0,0.00022465,2]
[355922951,1741716675463,-500.0,0.00022465,2]
[355922952,1741716675474,-500.0,0.00022465,2]
[355922953,1741716675485,-500.0,0.00022465,2]
[355922954,1741716675496,-500.0,0.00022465,2]
[355922955,1741716675507,-914.13,0.00022465,2]
[355922956,1741716675520,-500.0,0.00022465,2]
[355922957,1741716675530,-500.0,0.00022465,2]
[355922958,1741716675541,-1543.09,0.00022465,2]
[355922959,1741716675552,-500.0,0.00022465,2]
[355922960,1741716675564,-1087.78,0.00022465,2]
[355922961,1741716675575,-500.0,0.00022465,2]
[355922962,1741716675586,-500.0,0.00022465,2]
[355922963,1741716675598,-500.0,0.00022465,2]
[355922964,1741716675608,-648.15500408,0.00022465,2]
[355922965,1741716675619,-525.06,0.00022465,2]
[355922966,1741716675632,-3025.57,0.00022465,2]
[355922967,1741716675643,-500.0,0.00022465,2]
[355922968,1741716675655,-500.0,0.00022465,2]
[355922969,1741716675667,-500.0,0.00022465,2]
[355922970,1741716675679,-1013.34,0.00022465,2]
[355922971,1741716675691,-500.0,0.00022465,2]
[355922972,1741716675702,-500.0,0.00022465,2]
[355922973,1741716675713,-500.0,0.00022465,2]
[355922974,1741716675985,-500.0,0.00022465,2]
[355922975,1741716675996,-500.0,0.00022465,2]
[355922976,1741716676007,-500.0,0.00022465,2]
[355922977,1741716676019,-500.0,0.00022465,2]
[355922978,1741716676033,-500.0,0.00022465,2]
[355922979,1741716676044,-2686.03,0.00022465,2]
[355922980,1741716676055,-1570.16,0.00022465,2]
[355922981,1741716676067,-500.0,0.00022465,2]
[355922982,1741716676078,-500.0,0.00022465,2]
[355922983,1741716676088,-1595.33,0.00022465,2]
[355922984,1741716676098,-500.0,0.00022465,2]
[355922985,1741716676109,-500.0,0.00022465,2]
[355922986,1741716676120,-500.0,0.00022465,2]
[355922987,1741716676131,-2451.3,0.00022465,2]
[355922988,1741716676142,-1447.92,0.00022465,2]
[355922989,1741716676153,-500.0,0.00022465,2]
[355922990,1741716676164,-500.0,0.00022465,2]
[355922991,1741716676176,-500.0,0.00022465,2]
[355922992,1741716676190,-500.0,0.00022465,2]
[355922993,1741716676200,-2298.88,0.00022465,2]
[355922994,1741716676212,-500.0,0.00022465,2]
[355922995,1741716676222,-500.0,0.00022465,2]
[355922996,1741716676232,-500.0,0.00022465,2]
[355922997,1741716676243,-500.0,0.00022465,2]
[355922998,1741716676254,-2808.13,0.00022465,2]
[355922999,1741716676265,-500.0,0.00022465,2]
[355923000,1741716676280,-200.0,0.00022465,2]
[355923001,1741716676293,-500.0,0.00022465,2]
[355923002,1741716676305,-500.0,0.00022465,2]
[355923003,1741716676315,-500.0,0.00022465,2]
[355923004,1741716676327,-500.0,0.00022465,2]
[355923005,1741716676338,-500.0,0.00022465,2]
[355923006,1741716676349,-2473.59,0.00022465,2]
[355923007,1741716676359,-500.0,0.00022465,2]
[355923008,1741716676369,-500.0,0.00022465,2]
[355923009,1741716676381,-456.53880183,0.00022465,2]
[355923010,1741716676392,-500.0,0.00022465,2]
[355923011,1741716676401,-500.0,0.00022465,2]
[355923012,1741716676411,-500.0,0.00022465,2]
[355923013,1741716676421,-500.0,0.00022465,2]
[355923014,1741716676433,-500.0,0.00022465,2]
[355923015,1741716676444,-500.0,0.00022465,2]
[355923016,1741716676455,-500.0,0.00022465,2]
[355923017,1741716676466,-780.35,0.00022465,2]
[355923018,1741716676476,-500.0,0.00022465,2]
[355923019,1741716676487,-2284.96,0.00022465,2]
[355923020,1741716676498,-1184.9,0.00022465,2]
[355923021,1741716676509,-500.0,0.00022465,2]
[355923022,1741716676520,-1614.31,0.00022465,2]
[355923023,1741716676531,-500.0,0.00022465,2]
[355923024,1741716676542,-896.04,0.00022465,2]
[355923025,1741716676553,-500.0,0.00022465,2]
[355923026,1741716676565,-825.42,0.00022465,2]
[355923027,1741716676576,-500.0,0.00022465,2]
[355923028,1741716676588,-612.17,0.00022465,2]
[355923029,1741716676598,-500.0,0.00022465,2]
[355923030,1741716676609,-500.0,0.00022465,2]
[355923031,1741716676619,-500.0,0.00022465,2]
[355923032,1741716676630,-500.0,0.00022465,2]
[355923033,1741716676641,-500.0,0.00022465,2]
[355923034,1741716676652,-9645.49,0.00022465,2]
[355923035,1741716676663,-1857.45,0.00022465,2]
[355923036,1741716676673,-500.0,0.00022465,2]
[355923037,1741716676685,-1429.9,0.00022465,2]
[355923038,1741716676696,-500.0,0.00022465,2]
[355923039,1741716676706,-500.0,0.00022465,2]
[355923040,1741716676717,-500.0,0.00022465,2]
[355923041,1741716676728,-899.98,0.00022465,2]
[355923042,1741716676739,-1000.0,0.00022465,2]
[355923043,1741716676750,-500.0,0.00022465,2]
[355923044,1741716676761,-500.0,0.00022465,2]
[355923045,1741716676773,-7102.33,0.00022465,2]
[355923046,1741716676784,-500.0,0.00022465,2]
[355923047,1741716676794,-500.0,0.00022465,2]
[355923048,1741716676804,-500.0,0.00022465,2]
[355923049,1741716676815,-11976.4,0.00022465,2]
[355923050,1741716676825,-500.0,0.00022465,2]
[355923051,1741716676835,-1284.87,0.00022465,2]
[355923052,1741716676845,-509.80773912,0.00022465,2]
[355923053,1741716676855,-855.17,0.00022465,2]
[355923054,1741716676865,-505.77286047,0.00022465,2]
[355923055,1741716676876,-500.0,0.00022465,2]
[355923056,1741716676887,-500.0,0.00022465,2]
[355923057,1741716676897,-500.0,0.00022465,2]
[355923058,1741716676907,-500.0,0.00022465,2]
[355923059,1741716676918,-500.0,0.00022465,2]
[355923060,1741716676928,-23367.44,0.00022465,2]
[355923061,1741716676939,-500.0,0.00022465,2]
[355923062,1741716676948,-500.0,0.00022465,2]
[355923063,1741716676958,-500.0,0.00022465,2]
[355923064,1741716676968,-669.93,0.00022465,2]
[355923065,1741716676978,-500.0,0.00022465,2]
[355923066,1741716676988,-500.0,0.00022465,2]
[355923067,1741716676998,-500.0,0.00022465,2]
[355923068,1741716677008,-1907.14,0.00022465,2]
[355923069,1741716677017,-500.0,0.00022465,2]
[355923070,1741716677034,-500.0,0.00022465,2]
[355923071,1741716677043,-500.0,0.00022465,2]
[355923072,1741716677053,-2813.74,0.00022465,2]
[355923073,1741716677063,-500.0,0.00022465,2]
[355923074,1741716677073,-562.82,0.00022465,2]
[355923075,1741716677083,-500.0,0.00022465,2]
[355923076,1741716677093,-1222.25,0.00022465,2]
[355923077,1741716677107,-500.0,0.00022465,2]
[355923078,1741716677118,-514.05,0.00022465,2]
[355923079,1741716677127,-500.0,0.00022465,2]
[355923080,1741716677137,-2182.16,0.00022465,2]
[355923081,1741716677147,-500.0,0.00022465,2]
[355923082,1741716677156,-500.0,0.00022465,2]
[355923083,1741716677166,-500.0,0.00022465,2]
[355923084,1741716677176,-573.01,0.00022465,2]
[355923085,1741716677185,-4470.27,0.00022465,2]
[355923086,1741716677196,-1342.73,0.00022465,2]
[355923087,1741716677206,-500.0,0.00022465,2]
[355923088,1741716677216,-914.18,0.00022465,2]
[355923089,1741716677226,-500.0,0.00022465,2]
[355923090,1741716677236,-500.0,0.00022465,2]
[355923091,1741716677246,-578.89,0.00022465,2]
[355923092,1741716677256,-500.0,0.00022465,2]
[355923093,1741716677265,-500.0,0.00022465,2]
[355923094,1741716677277,-500.0,0.00022465,2]
[355923095,1741716677287,-989.87,0.00022465,2]
[355923096,1741716677296,-934.23,0.00022465,2]
[355923097,1741716677306,-885.21,0.00022465,2]
[355923098,1741716677315,-2800.07,0.00022465,2]
[355923099,1741716677325,-500.0,0.00022465,2]
[355923100,1741716677334,-1444.17,0.00022465,2]
[355923101,1741716677344,-500.0,0.00022465,2]
[355923102,1741716677353,-500.0,0.00022465,2]
[355923103,1741716677362,-4730.12,0.00022465,2]
[355923104,1741716677372,-500.0,0.00022465,2]
[355923105,1741716677381,-500.0,0.00022465,2]
[355923106,1741716677390,-9446.84,0.00022465,2]
[355923107,1741716677400,-500.0,0.00022465,2]
[355923108,1741716677410,-3755.9,0.00022465,2]
[355923109,1741716677419,-500.0,0.00022465,2]
[355923110,1741716677428,-500.0,0.00022465,2]
[355923111,1741716677438,-2814.21,0.00022465,2]
[355923112,1741716677448,-3691.0,0.00022465,2]
[355923113,1741716677458,-1202.86,0.00022465,2]
[355923114,1741716677468,-500.0,0.00022465,2]
[355923115,1741716677477,-587.88,0.00022465,2]
[355923116,1741716677488,-500.0,0.00022465,2]
[355923117,1741716677498,-869.52,0.00022465,2]
[355923118,1741716677508,-500.0,0.00022465,2]
[355923119,1741716677517,-500.0,0.00022465,2]
[355923120,1741716677527,-500.0,0.00022465,2]
[355923121,1741716677537,-3579.07,0.00022465,2]
[355923122,1741716677546,-500.0,0.00022465,2]
[355923123,1741716677556,-299174.99,0.00022465,2]
[355923124,1741716677565,-2945.67,0.00022465,2]
[355923125,1741716677575,-500.0,0.00022465,2]
[355923126,1741716677584,-204.51586674,0.00022465,2]
[355923127,1741716677594,-500.0,0.00022465,2]
[355923128,1741716677604,-383.91736606,0.00022465,2]
[355923129,1741716677613,-880.17,0.00022465,2]
[355923130,1741716677623,-500.0,0.00022465,2]
[355923131,1741716677634,-500.0,0.00022465,2]
[355923132,1741716677644,-2983.87,0.00022465,2]
[355923133,1741716677655,-500.0,0.00022465,2]
[355923134,1741716677665,-11349.89,0.00022465,2]
[355923135,1741716677675,-500.0,0.00022465,2]
[355923136,1741716677685,-500.0,0.00022465,2]
[355923137,1741716677695,-500.0,0.00022465,2]
[355923138,1741716677705,-500.0,0.00022465,2]
[355923139,1741716677715,-355.77157087,0.00022465,2]
[355923140,1741716677725,-500.0,0.00022465,2]
[355923141,1741716677736,-500.0,0.00022465,2]
[355923142,1741716677746,-811.32,0.00022465,2]
[355923143,1741716677756,-500.0,0.00022465,2]
[355923144,1741716677766,-500.0,0.00022465,2]
[355923145,1741716677780,-500.0,0.00022465,2]
[355923146,1741716677790,-6411.78,0.00022465,2]
[355923147,1741716677800,-1407.74,0.00022465,2]
[355923148,1741716677810,-545.41250065,0.00022465,2]
[355923149,1741716677819,-500.0,0.00022465,2]
[355923150,1741716677829,-500.0,0.00022465,2]
[355923151,1741716677839,-500.0,0.00022465,2]
[355923152,1741716677848,-2234.33,0.00022465,2]
[355923153,1741716677858,-1914.64,0.00022465,2]
[355923154,1741716677867,-500.0,0.00022465,2]
[355923155,1741716677877,-500.0,0.00022465,2]
[355923156,1741716677886,-500.0,0.00022465,2]
[355923157,1741716677895,-500.0,0.00022465,2]
[355923158,1741716677904,-516.47,0.00022465,2]
[355923159,1741716677913,-1299.12,0.00022465,2]
[355923160,1741716677922,-500.0,0.00022465,2]
[355923161,1741716677932,-2072.12,0.00022465,2]
[355923162,1741716677941,-500.0,0.00022465,2]
[355923163,1741716677950,-834.53,0.00022465,2]
[355923164,1741716677960,-500.0,0.00022465,2]
[355923165,1741716677969,-3763.62,0.00022465,2]
[355923166,1741716677979,-500.0,0.00022465,2]
[355923167,1741716677988,-551.18,0.00022465,2]
[355923168,1741716677998,-500.0,0.00022465,2]
[355923169,1741716678007,-3522.52,0.00022465,2]
[355923170,1741716678017,-500.0,0.00022465,2]
[355923171,1741716678030,-500.0,0.00022465,2]
[355923172,1741716678039,-658.55,0.00022465,2]
[355923173,1741716678053,-500.0,0.00022465,2]
[355923174,1741716678063,-500.0,0.00022465,2]
[355923175,1741716678073,-500.0,0.00022465,2]
[355923176,1741716678083,-583.5,0.00022465,2]
[355923177,1741716678094,-1515.05,0.00022465,2]
[355923178,1741716678104,-13694.52,0.00022465,2]
[355923179,1741716678114,-500.0,0.00022465,2]
[355923180,1741716678124,-2033.78,0.00022465,2]
[355923181,1741716678134,-500.0,0.00022465,2]
[355923182,1741716678143,-500.0,0.00022465,2]
[355923183,1741716678153,-2419.19,0.00022465,2]
[355923184,1741716678162,-1260.46,0.00022465,2]
[355923185,1741716678172,-500.0,0.00022465,2]
[355923186,1741716678181,-1096.01,0.00022465,7]
[355923187,1741716678190,-500.0,0.00022465,2]
[355923188,1741716678200,-500.0,0.00022465,2]
[355923189,1741716678210,-947.72,0.00022465,2]
[355923190,1741716678219,-567.06,0.00022465,2]
[355923191,1741716678229,-967.47,0.00022465,2]
[355923192,1741716678238,-1574.32,0.00022465,2]
[355923193,1741716678248,-1213.75,0.00022465,2]
[355923194,1741716678257,-2759.01,0.00022465,2]
[355923195,1741716678267,-500.0,0.00022465,2]
[355923196,1741716678280,-568.9584204,0.00022465,2]
[355923197,1741716678290,-500.0,0.00022465,2]
[355923198,1741716678300,-1492.0,0.00022465,2]
[355923199,1741716678310,-500.0,0.00022465,2]
[355923200,1741716678319,-500.0,0.00022465,2]
[355923201,1741716678329,-2494.97,0.00022465,2]
[355923202,1741716678339,-500.0,0.00022465,2]
[355923203,1741716678349,-10869.8,0.00022465,2]
[355923204,1741716678359,-500.0,0.00022465,2]
[355923205,1741716678368,-500.0,0.00022465,2]
[355923206,1741716678378,-724.88,0.00022465,2]
[355923207,1741716678387,-500.0,0.00022465,2]
[355923208,1741716678397,-313.05361542,0.00022465,2]
[355923209,1741716678407,-500.0,0.00022465,2]
[355923210,1741716678417,-500.0,0.00022465,2]
[355923211,1741716678426,-537.03,0.00022465,2]
[355923212,1741716678533,-500.0,0.00022465,2]
[355923213,1741716678545,-500.0,0.00022465,2]
[355923214,1741716678555,-500.0,0.00022465,2]
[355923215,1741716678565,-500.0,0.00022465,2]
[355923216,1741716678576,-548.24541829,0.00022465,2]
[355923217,1741716678586,-1067.93,0.00022465,2]
[355923218,1741716678596,-751.32,0.00022465,2]
[355923219,1741716678606,-500.0,0.00022465,2]
[355923220,1741716678615,-500.0,0.00022465,2]
[355923221,1741716678625,-725.1,0.00022465,2]
[355923222,1741716678634,-523.37451674,0.00022465,2]
[355923223,1741716678644,-500.0,0.00022465,2]
[355923224,1741716678653,-5830.62,0.00022465,2]
[355923225,1741716678663,-500.0,0.00022465,2]
[355923226,1741716678672,-13663.82,0.00022465,2]
[355923227,1741716678682,-8586.74,0.00022465,2]
[355923228,1741716678692,-500.0,0.00022465,2]
[355923229,1741716678702,-500.0,0.00022465,2]
[355923230,1741716678712,-500.0,0.00022465,2]
[355923231,1741716678722,-500.0,0.00022465,2]
[355923232,1741716678732,-500.0,0.00022465,2]
[355923233,1741716678742,-1052.85,0.00022465,2]
[355923234,1741716678752,-710.74,0.00022465,2]
[355923235,1741716678762,-500.0,0.00022465,2]
[355923236,1741716678774,-562.29,0.00022465,2]
[355923237,1741716678784,-1490.39,0.00022465,2]
[355923238,1741716678794,-2664.47,0.00022465,2]
[355923239,1741716678804,-500.0,0.00022465,2]
[355923240,1741716678814,-760.33,0.00022465,2]
[355923241,1741716678824,-500.0,0.00022465,2]
[355923242,1741716678834,-9046.62,0.00022465,2]
[355923243,1741716678843,-500.0,0.00022465,2]
[355923244,1741716678853,-500.0,0.00022465,2]
[355923245,1741716678862,-535.84735425,0.00022465,2]
[355923246,1741716678872,-500.0,0.00022465,2]
[355923247,1741716678882,-683.04,0.00022465,2]
[355923248,1741716678891,-3131.63,0.00022465,2]
[355923249,1741716678900,-1176.59,0.00022465,2]
[355923250,1741716678910,-1428.31,0.00022465,2]
[355923251,1741716678920,-1006.02,0.00022465,2]
[355923252,1741716678929,-500.0,0.00022465,2]
[355923253,1741716678939,-500.0,0.00022465,2]
[355923254,1741716678949,-1000.0,0.00022465,2]
[355923255,1741716678958,-500.0,0.00022465,2]
[355923256,1741716678968,-1287.74,0.00022465,2]
[355923257,1741716678977,-1569.12,0.00022465,2]
[355923258,1741716678986,-2049.22,0.00022465,2]
[355923259,1741716678995,-500.0,0.00022465,2]
[355923260,1741716679005,-500.0,0.00022465,2]
[355923261,1741716679015,-500.0,0.00022465,2]
[355923262,1741716679032,-1105.59,0.00022465,2]
[355923263,1741716679042,-1986.41,0.00022465,2]
[355923264,1741716679052,-633.94,0.00022465,2]
[355923265,1741716679062,-701.01,0.00022465,2]
[355923266,1741716679073,-500.0,0.00022465,2]
[355923267,1741716679083,-1151.53,0.00022465,2]
[355923268,1741716679093,-280.13889298,0.00022465,2]
[355923269,1741716679102,-500.0,0.00022465,2]
[355923270,1741716679112,-1137.57,0.00022465,2]
[355923271,1741716679121,-500.0,0.00022465,2]
[355923272,1741716679130,-500.0,0.00022465,2]
[355923273,1741716679140,-500.0,0.00022465,2]
[355923274,1741716679149,-500.0,0.00022465,2]
[355923275,1741716679159,-500.0,0.00022465,2]
[355923276,1741716679169,-2208.74,0.00022465,2]
[355923277,1741716679179,-500.0,0.00022465,2]
[355923278,1741716679185,-500.0,0.00022465,2]
[355923279,1741716679195,-3979.18,0.00022465,2]
[355923280,1741716679205,-779.1,0.00022465,2]
[355923281,1741716679214,-500.0,0.00022465,2]
[355923282,1741716679224,-16462.07,0.00022465,2]
[355923283,1741716679232,-690.32,0.00022465,2]